Workbook

Sheet Sheet1
A2: Isobutane | C2: R600a | K2: R600
A4: Kritisk temperature | C4: =R_Tcrit(C2) ->  | K4: =R_Tcrit(K2) -> 
A5: Kritisk Trykk | C5: =R_Pcrit(C2) ->  | K5: =R_Pcrit(K2) -> 
D7: kokepunkt | E7: mettet | F7: Fordampnings | L7: kokepunkt | M7: mettet | N7: Fordampnings
D8: Væske | E8: Gas | F8: varme | G8: gass | L8: Væske | M8: Gas | N8: varme | O8: gass
B9: Trykk | C9: Temp | D9: Entalpi | E9: Entalpi | F9: Entalpi | G9: Entalpi | J9: Trykk | K9: Temp | L9: Entalpi | M9: Entalpi | N9: Entalpi | O9: Entalpi
B10: =R_PsatliqT($C$2,C10) ->  | C10: =134-1 -> 133 | D10: =R_hsatliqT($C$2,C10) ->  | E10: =R_hsatgasT($C$2,C10) ->  | F10: =E10-D10 ->  | G10: =r_hgastp($C$2,C10,B10) ->  | H10: =r_hgastp($C$2,C10+10,B10) ->  | J10: =R_PsatliqT($K$2,K10) ->  | K10: =134-1 -> 133 | L10: =R_hsatliqT($K$2,K10) ->  | M10: =R_hsatgasT($K$2,K10) ->  | N10: =M10-L10 ->  | O10: =r_hgastp($K$2,K10,J10) -> 
B11: =R_PsatliqT($C$2,C11) ->  | C11: 130 | D11: =R_hsatliqT($C$2,C11) ->  | E11: =R_hsatgasT($C$2,C11) ->  | F11: =E11-D11 ->  | G11: =r_hgastp($C$2,C11,B11) ->  | H11: =r_hgastp($C$2,C11+10,B11) ->  | J11: =R_PsatliqT($K$2,K11) ->  | K11: 130 | L11: =R_hsatliqT($K$2,K11) ->  | M11: =R_hsatgasT($K$2,K11) ->  | N11: =M11-L11 ->  | O11: =r_hgastp($K$2,K11,J11) -> 
C12: 120 | K12: 120
C13: 110 | K13: 110
C14: 100 | K14: 100
C15: 90 | K15: 90
C16: 80 | K16: 80
C17: 70 | K17: 70
C18: 60 | K18: 60
C19: 50 | K19: 50
C20: 40 | K20: 40
C21: 30 | K21: 30
C22: 20 | K22: 20
C23: 10 | K23: 10
C24: 0 | K24: 0
C25: -10 | K25: -10
C26: -20 | K26: -20
C27: -30 | K27: -30
C28: -40 | K28: -40

Sheet CO2 calculation
A1: Finding the rigth values
A2: Red indicates fixed value
A3: Assume that the temperature difference between CO2 and water is 5-10˚C
A5: Hot water use per person per day
A6: 64 | B6: l/pr pers per house hold
A7: 5 | B7: persons in house hold | G7: 100% effect
J8: Total mas flow of water in the system
A9: =A6*A7 -> 320 | B9: l/used per day | E9: Mass flow water | G9: =A9/(24*3600) -> 0.003703703704 | H9: kg/s | J9: =G9+G13 -> 0.02762714868 | K9: kg/s | L9: =J9*24*3600 -> 2386.985646 | M9: l/day
A11: Water use in the space heating cycle
A12: 500 | B12: l/per day | E12: Mass flow heating cycle | G12: =A12/(24*3600) -> 0.005787037037 | H12: kg/s
C13: Mass flow depending on the effect of Pb (water) | G13: =G24/(J22*(B27-B24)) -> 0.02392344498 | H13: kg/s | I13: =G13*24*3600 -> 2066.985646 | J13: l/day
A16: Total effect need for heating of domestic water from 5-85˚C
B17: Effekt som trengs oppvarming vann | C17: Pa+Pc | D17: =G9*J22*(B26-B25) -> 1.161111111 | E17: kW
A20: There are three (3) gas coolers
A21: Temperature of the water
B22: In | E22: Effect water | I22: cp water | J22: 4.18 | K22: kJ/kg ˚C
A23: e | B23: =B28 -> 35 | C23: ˚C | E23: Pa | G23: =G9*J22*(B26-B23) -> 0.7740740741 | H23: kW | I23: cp CO2 | J23: 0.84 | K23: kJ/kg ˚C
A24: c | B24: =B35-5 -> 35 | C24: ˚C | E24: Pb | G24: 3 | H24: kW
A25: a | B25: 10 | C25: ˚C | E25: Pc | G25: =G9*J22*(B28-B25) -> 0.387037037 | H25: kW
A26: f | B26: =B33-5 -> 85 | C26: ˚C | E26: Pa+Pc | G26: =G23+G25 -> 1.161111111 | H26: kW
A27: d | B27: =B34-5 -> 65 | C27: ˚C
A28: b | B28: =B35-5 -> 35 | C28: ˚C
A30: Temperature of the gas coolers | K30: R744
E31: Trykk [bar] | K31: CO2 | L31: [J/kg]
A32: 1 | B32: -10 | C32: ˚C | E32: 27 | G32: Effect gas cooler | K32: h1 | L32: =R_hsatgasP(K30,E32*100000) -> 435962.3753
A33: 2 | B33: 90 | C33: ˚C | E33: 92 | G33: A | H33: =G40*(L33-L34)/1000 -> 0.792974619 | I33: kW | K33: h2 | L33: =r_hgastp(K30,B33,E33*100000) -> 496067.5393
A34: 3' | B34: 70 | C34: ˚C | E34: 92 | G34: B | H34: =G40*(L34-L35)/1000 -> 3 | I34: kW | K34: h3' | L34: =r_hgastp(K30,B34,E34*100000) -> 462078.3598
A35: 3'' | B35: 40 | C35: ˚C | D35: Pa | E35: =E34 -> 92 | G35: C | H35: =G40*(L35-L36)/1000 -> 2.663854946 | I35: kW | K35: h3'' | L35: =r_hgastp(K30,B35,E35*100000) -> 333489.7064
A36: 3 | B36: 10 | C36: ˚C | D36: Pb | E36: 92 | G36: PA+PC | H36: =H33+H35 -> 3.456829565 | I36: kW | K36: h3 | L36: =r_hgastp(K30,B36,E36*100000) -> 219309.1997
A37: 4 | B37: =B32 -> -10 | C37: ˚C | D37: Pc | E37: 27 | K37: h4 | L37: =L36 -> 219309.1997
D40: Find mCO2 by Pb water | G40: =G24/(L34-L35)*1000 -> 0.02333020777 | H40: kg/s
J41: COP for 1 stage compression
D42: Find T(A-in water) by PA water | G42: =-(G23/(G9*J22))+B26 -> 35 | H42: ˚C | J42: COP | K42: (h2-h3'')/(h2-h1)
K43: =(L33-L35)/(L33-L32) -> 2.704889597
D44: Compressor effect | F44: 0.8 | G44: =((G40*(L33-L32))*F44)/1000 -> 1.121812771 | H44: kW
E47: Effect total
E48: Water | G48: =G23+G24+G25 -> 4.161111111 | H48: kW | I48: =G48*24*31 -> 3095.866667 | J48: kWh
E49: CO2 | G49: =H33+H34+H35 -> 6.456829565 | H49: kW | I49: =G49*24*31 -> 4803.881196 | J49: kWh
D53: Find mR717 by Pb water | K53: h1 | L53: -63.8
D54: Find mR290 by Pb water | K54: h2 | L54: -11.1
K55: h3 | L55: -299.7
J56: COP | K56: =(L54-L53)/(L54-L55) -> 0.1826056826
